{"text_format":"1","workbook":"xlsx","n_sheets":1,"sheets":["ورقة1"],"not_rendered":{"charts":0,"images":0,"macros":1,"external_links":0,"defined_names":1,"comments":0,"pivot_tables":0},"unopened":[],"bounds":{"document_bytes":16777216,"sheet_cells":100000,"rows_first":2000,"rows_last":500,"rows_between":2000,"halvings":0,"cell_chars":16384,"cell_head_chars":4096},"cells_cut":0,"cells_raw":0,"read":"whole","date_system":"1900"}

{"sheet":"ورقة1","index":0,"n_rows":15,"n_cols":25,"rows_kept":15,"cut":false,"hidden":false,"merged":[]}
[]
[]
[null,null,null,null,null,null,null,"اخواني الكرام هل يوجد كود يحول قيمة الخلية الصفراء الى الخلية الزرقاء بنفس التنسيق الموضح"]
[null,null,null,null,null,null,null,"بحيث يستبدل كل حرف بالعدد الموضح امامه"]
[]
[]
[]
[]
[null,null,null,null,null,null,null,null,null,"محمد ",null,null,null,{"$f":"IF(LEN(TRIM($J$9))-COLUMN(A$1)+1>0,MID($J$9,LEN(TRIM($J$9))-COLUMN(A$1)+1,1),\"\")","v":"د"},{"$f":"IF(LEN(TRIM($J$9))-COLUMN(B$1)+1>0,MID($J$9,LEN(TRIM($J$9))-COLUMN(B$1)+1,1),\"\")","v":"م"},"ح","م","","","","","","","",""]
[null,null,null,null,null,null,null,null,null,{"$f":"ConcatRng($N$10:$Y$10,\"\")","v":"3121"},null,null,null,{"$f":"IF(N9=\"\",\"\",VLOOKUP(N9,Rng,2,0))","v":3},{"$f":"IF(O9=\"\",\"\",VLOOKUP(O9,Rng,2,0))","v":1},{"$f":"IF(P9=\"\",\"\",VLOOKUP(P9,Rng,2,0))","v":2},{"$f":"IF(Q9=\"\",\"\",VLOOKUP(Q9,Rng,2,0))","v":1},{"$f":"IF(R9=\"\",\"\",VLOOKUP(R9,Rng,2,0))","v":""},{"$f":"IF(S9=\"\",\"\",VLOOKUP(S9,Rng,2,0))","v":""},{"$f":"IF(T9=\"\",\"\",VLOOKUP(T9,Rng,2,0))","v":""},{"$f":"IF(U9=\"\",\"\",VLOOKUP(U9,Rng,2,0))","v":""},{"$f":"IF(V9=\"\",\"\",VLOOKUP(V9,Rng,2,0))","v":""},{"$f":"IF(W9=\"\",\"\",VLOOKUP(W9,Rng,2,0))","v":""},{"$f":"IF(X9=\"\",\"\",VLOOKUP(X9,Rng,2,0))","v":""},{"$f":"IF(Y9=\"\",\"\",VLOOKUP(Y9,Rng,2,0))","v":""}]
[null,null,null,"لإضافة حروف أخرى في هذا العمود يكفي كتابة الحرف فقط دون الرمز \"=\""]
[]
[null,null,null,null,null,null,null,null,"م",1]
[null,null,null,null,null,null,null,null,"ح",2]
[null,null,null,null,null,null,null,null,"د",3]